Workbook

Sheet Séqu directe
B1: 1 | C1: 5
B2: 0.8 | C2: 250 | K2: 2 | Q2: Méthode d'obtention de la composante directe
B3: 0.6 | C3: 105
B4: Ampl | C4: Angle | D4: 1
B5: 1 | C5: 5 | E5: =D4*0 -> 0 | F5: =D4*$B5*COS($C5/180*PI()) -> 0.9961946981 | G5: =D4*0 -> 0 | H5: =D4*$B5*SIN($C5/180*PI()) -> 0.08715574275 | L5: =M4*0 ->  | M5: =0*M4 -> 
B6: 0.8 | C6: 250 | D6: 0 | E6: =D4*D6*F5 -> 0 | F6: =D4*$B6*COS($C6/180*PI())+E6 -> -0.2736161147 | G6: =D4*D6*H5 -> 0 | H6: =D4*$B6*SIN($C6/180*PI())+G6 -> -0.7517540966 | I6: =1/INT(SQRT(F6^2+H6^2)/0.1) -> 0.125 | L6: =M4*F8 ->  | M6: =M4*H8 ->  | N6: =SQRT(L6^2+M6^2) ->  | O6: =ATAN2(L6,M6)*180/PI() ->  | Q6: =IF($K$2=1,"ð","") -> 
B7: 0.6 | C7: 105 | D7: 0 | E7: =D4*D7*F6 -> 0 | F7: =D4*$B7*COS($C7/180*PI())+E7 -> -0.1552914271 | G7: =D4*D7*H6 -> 0 | H7: =D4*$B7*SIN($C7/180*PI())+G7 -> 0.5795554958
F8: 2.363596396 | H8: 0.07078285782 | L8: =L4*(L6/3-M6/N6*0.03) ->  | M8: =L4*(M6/3+L6/N6*0.03) -> 
L9: =L4*(L6/3+M6/N6*0.03) ->  | M9: =(L4*M6/3-L6/N6*0.03) ->  | Q9: =IF($K$2=2,"ð","") -> ð
B11: 0.3 | C11: 250 | D11: =$D$10*$B11*COS($C11/180*PI()) ->  | E11: =$D$10*$B11*SIN($C11/180*PI()) ->  | G11: 0.3 | H11: 105 | I11: =$I$10*$G11*COS($H11/180*PI()) ->  | J11: =$I$10*$G11*SIN($H11/180*PI()) ->  | L11: =L4*(2*L6/3-M6/N6*0.03) ->  | M11: =L4*(2*M6/3+L6/N6*0.03) -> 
B12: 0.3 | C12: =C11+10 -> 260 | G12: 0.3 | H12: =H11+10 -> 115 | I12: =$I$10*$G12*COS($H12/180*PI()) ->  | L12: =L4*(2*L6/3+M6/N6*0.03) ->  | M12: =L4*(2*M6/3-L6/N6*0.03) ->  | Q12: =IF($K$2=3,"ð","") -> 
B13: 0.3 | C13: =C12+10 -> 270 | G13: 0.3 | H13: =H12+10 -> 125
B14: 0.3 | C14: 280 | G14: 0.3 | H14: 135
B15: 0.3 | C15: 290 | G15: 0.3 | H15: 145 | Q15: =IF($K$2=4,"ð","") -> 
B16: 0.3 | C16: 300 | G16: 0.3 | H16: 155
B17: 0.3 | C17: 310 | G17: 0.3 | H17: 165
B18: 0.3 | C18: 320 | G18: 0.3 | H18: 175 | Q18: =IF($K$2=5,"ð","") -> 
B19: 0.3 | C19: 330 | G19: 0.3 | H19: 185
B20: 0.3 | C20: 340 | G20: 0.3 | H20: 195
B21: 0.3 | C21: 350 | G21: 0.3 | H21: 205 | Q21: =IF($K$2=6,"ð","") -> 
B22: 0.3 | C22: 360 | G22: 0.3 | H22: 215
B23: 0.3 | C23: =C22+10 -> 370 | G23: 0.3 | H23: 225
G24: 0.3 | H24: 235 | Q24: =IF($K$2=7,"ð","") -> 
B25: 0.27 | C25: =C23-9 -> 361 | D25: =$D$10*$B25*COS($C25/180*PI()) ->  | E25: =$D$10*$B25*SIN($C25/180*PI()) ->  | G25: 0.3 | H25: 245
B26: 0.3 | C26: =C23 -> 370 | D26: =$D$10*$B26*COS($C26/180*PI()) ->  | E26: =$D$10*$B26*SIN($C26/180*PI()) ->  | G26: 0.3 | H26: 255
B27: 0.33 | C27: =C25 -> 361 | D27: =$D$10*$B27*COS($C27/180*PI()) ->  | E27: =$D$10*$B27*SIN($C27/180*PI()) ->  | G27: 0.3 | H27: 265
G28: 0.3 | H28: 275
B29: 0.3 | C29: =C17 -> 310 | D29: =D17 ->  | G29: 0.3 | H29: 285
G30: 0.3 | H30: 295
G31: 0.3 | H31: 305
G32: 0.3 | H32: =H31+10 -> 315
G33: 0.3 | H33: 325
G34: 0.3 | H34: 335
G35: 0.3 | H35: 345
G37: 0.27 | H37: =H35-9 -> 336 | J37: =$I$10*$G37*SIN($H37/180*PI()) -> 
G38: 0.3 | H38: =H35 -> 345 | J38: =$I$10*$G38*SIN($H38/180*PI()) -> 
G39: 0.33 | H39: =H37 -> 336
G41: 0.3 | H41: =H23 -> 225 | I41: =I23 ->  | J41: =J23 -> 
